[Event "1000GM Winter IM Norm-2 2024"]
[Site "Sunnyvale/"]
[Date "2024.01.06"]
[Round "7.4"]
[White "Arenas, David"]
[Black "Atwell, Rose"]
[Result "1/2-1/2"]
[ECO "B12"]
[WhiteElo "2406"]
[BlackElo "2104"]
[Annotator "RC"]
[PlyCount "47"]
[EventDate "2023.12.14"]
[EventType "schev"]
[EventCountry "USA"]
[SourceTitle "playchess.com"]
[Source "ChessBase"]
[SourceQuality "1"]
[TimeControl "5400+30"]

1. e4 {[%emt 0:09:15]} c6 {[%emt 0:00:05]} 2. d4 {[%emt 0:00:05]} d5 {[%emt 0:00:06]} 3. e5 {[%emt 0:00:56]} Bf5 {[%emt 0:00:06]} 4. Nd2 {[%emt 0:00:03]} e6 {[%emt 0:00:08]} 5. Nb3 {[%emt 0:00:03]} c5 {[%emt 0:00:07]} 6. dxc5 {[%emt 0:02:51]} Bxc5 {[%emt 0:01:32]} 7. Nf3 {[%emt 0:01:02]} Nc6 {[%emt 0:05:52]} 8. Nxc5 {[%emt 0:02:54]} Qa5+ {[%emt 0:00:08]} 9. c3 {[%emt 0:00:02]} Qxc5 {[%emt 0:00:08]} 10. Be3 {[%emt 0:00:04]} Qa5 {[%emt 0:04:57]} 11. Nd4 {[%emt 0:00:37]} Nxd4 {[%emt 0:07:13]} 12. Bxd4 {[%emt 0:00:41]} Ne7 {[%emt 0:01:12]} 13. b4 {[%emt 0:00:21]} Qc7 {[%emt 0:02:21]} 14. Bb5+ {[%emt 0:00:15]} Nc6 {[%emt 0:00:44]} 15. O-O {[%emt 0:00:42]} O-O {[%emt 0:07:41]} 16. Bxc6 {[%emt 0:00:18]} Qxc6 {[%emt 0:03:05]} 17. a4 {[%emt 0:00:11]} Rfc8 {[%emt 0:04:22]} 18. Qd2 {[%emt 0:01:00]} h6 {[%emt 0:04:37]} 19. Rfe1 {[%emt 0:00:57]} Qd7 {[%emt 0:03:44]} 20. a5 {[%emt 0:00:47]} Rc4 {[%emt 0:05:23]} 21. Re3 {[%emt 0:00:54]} Qc6 {[%emt 0:02:50]} 22. Rg3 {[%emt 0:00:26]} Kh8 {[%emt 0:01:42]} 23. Qe3 {[%emt 0:00:37]} a6 {[%emt 0:02:19]} 24. Re1 {[%emt 0:00:53]} 1/2-1/2

[Event "1000GM Winter IM Norm-2 2024"]
[Site "Sunnyvale/"]
[Date "2024.01.06"]
[Round "7.5"]
[White "Mede, Istvan"]
[Black "Sivakumar, Shaaketh"]
[Result "1-0"]
[ECO "C01"]
[WhiteElo "2187"]
[BlackElo "2364"]
[Annotator "RC"]
[PlyCount "65"]
[EventDate "2023.12.14"]
[EventType "schev"]
[EventCountry "USA"]
[SourceTitle "playchess.com"]
[Source "ChessBase"]
[SourceQuality "1"]
[TimeControl "5400+30"]

1. e4 {[%emt 0:03:00]} e6 {[%emt 0:00:09]} 2. d4 {[%emt 0:00:06]} d5 {[%emt 0:00:07]} 3. exd5 {[%emt 0:00:25]} exd5 {[%emt 0:00:03]} 4. Nf3 {[%emt 0:00:05]} Nc6 {[%emt 0:00:09]} 5. Bb5 {[%emt 0:00:10]} Bd6 {[%emt 0:00:09]} 6. c4 {[%emt 0:00:18]} dxc4 {[%emt 0:00:06]} 7. d5 {[%emt 0:00:13]} a6 {[%emt 0:00:05]} 8. Ba4 {[%emt 0:00:06]} b5 {[%emt 0:00:04]} 9. dxc6 {[%emt 0:00:05]} bxa4 {[%emt 0:00:07]} 10. O-O {[%emt 0:00:04]} Ne7 {[%emt 0:00:09]} 11. Qxa4 {[%emt 0:00:25]} Be6 {[%emt 0:00:18]} 12. Nbd2 {[%emt 0:01:45]} O-O {[%emt 0:01:58]} 13. Nxc4 {[%emt 0:02:53]} Bd5 {[%emt 0:00:35]} 14. Nxd6 {[%emt 0:01:11]} Qxd6 {[%emt 0:00:42]} 15. Qf4 {[%emt 0:12:27]} Qxc6 {[%emt 0:01:17]} 16. b3 {[%emt 0:04:55]} Ng6 {[%emt 0:07:00]} 17. Qg3 {[%emt 0:01:17]} f5 {[%emt 0:14:29]} 18. Bf4 {[%emt 0:06:27]} Nxf4 {[%emt 0:08:37]} 19. Qxf4 {[%emt 0:00:04]} Qg6 {[%emt 0:06:52]} 20. Rfe1 {[%emt 0:04:42]} c6 {[%emt 0:03:07]} 21. Qg5 {[%emt 0:00:47]} Rf6 {[%emt 0:04:40]} 22. Qxg6 {[%emt 0:08:33]} Rxg6 {[%emt 0:00:02]} 23. Nh4 {[%emt 0:02:57]} Rg4 {[%emt 0:03:39]} 24. g3 {[%emt 0:00:29]} Rf8 {[%emt 0:09:26]} 25. Re5 {[%emt 0:06:35]} Re4 {[%emt 0:05:21]} 26. Rxf5 {[%emt 0:43:31]} Rfe8 {[%emt 0:34:19]} 27. Ng2 {[%emt 0:00:30]} Re2 28. Ne3 {[%emt 0:00:30]} R8xe3 {[%emt 0:01:00]} 29. fxe3 {[%emt 0:00:30]} Rg2+ 30. Kf1 Rxh2 {[%emt 0:01:00]} 31. Rd1 Rxa2 {[%emt 0:00:30]} 32. e4 {[%emt 0:01:30]} g6 {[%emt 0:00:30]} 33. exd5 1-0

[Event "1000GM Winter IM Norm-2 2024"]
[Site "Sunnyvale/"]
[Date "2024.01.06"]
[Round "7.6"]
[White "Stopa, Jacek"]
[Black "Yao, Hanchi"]
[Result "1-0"]
[ECO "D00"]
[WhiteElo "2344"]
[BlackElo "1998"]
[Annotator "RC"]
[PlyCount "94"]
[EventDate "2023.12.14"]
[EventType "schev"]
[EventCountry "USA"]
[SourceTitle "playchess.com"]
[Source "ChessBase"]
[SourceQuality "1"]
[TimeControl "5400+30"]

1. d4 {[%emt 0:00:05]} Nf6 {[%emt 0:00:05]} 2. Bg5 {[%emt 0:00:20]} d5 {[%emt 0:00:17]} 3. Bxf6 {[%emt 0:01:03]} exf6 {[%emt 0:00:09]} 4. e3 {[%emt 0:00:24]} Bf5 {[%emt 0:01:30]} 5. g3 {[%emt 0:02:27]} c6 {[%emt 0:01:48]} 6. Nd2 {[%emt 0:00:49]} Nd7 {[%emt 0:02:33]} 7. Bg2 {[%emt 0:01:42]} Nb6 {[%emt 0:02:42]} 8. Ne2 {[%emt 0:00:41]} Bd6 {[%emt 0:00:45]} 9. O-O {[%emt 0:00:09]} O-O {[%emt 0:00:14]} 10. a4 {[%emt 0:02:35]} a5 {[%emt 0:05:20]} 11. b3 {[%emt 0:00:32]} Qd7 {[%emt 0:06:37]} 12. c4 {[%emt 0:08:44]} Bb4 {[%emt 0:00:11]} 13. c5 {[%emt 0:00:57]} Nc8 {[%emt 0:00:43]} 14. Nf3 {[%emt 0:02:28]} b6 {[%emt 0:01:41]} 15. cxb6 {[%emt 0:00:24]} h6 {[%emt 0:05:39]} 16. Ne1 {[%emt 0:00:39]} Qb7 {[%emt 0:03:33]} 17. Nd3 {[%emt 0:00:56]} Qxb6 {[%emt 0:00:15]} 18. Nxb4 {[%emt 0:06:32]} Qxb4 {[%emt 0:00:19]} 19. Rc1 {[%emt 0:01:54]} Ra6 {[%emt 0:06:43]} 20. Rc3 {[%emt 0:02:54]} Nd6 {[%emt 0:02:20]} 21. f3 {[%emt 0:00:52]} Re8 {[%emt 0:02:36]} 22. Kf2 {[%emt 1:04:23]} Rb6 {[%emt 0:02:10]} 23. Qc1 {[%emt 0:00:00]} Bd7 {[%emt 0:05:21]} 24. Nf4 {[%emt 0:00:00]} Rbb8 {[%emt 0:01:49]} 25. Nd3 {[%emt 0:00:00]} Qb7 {[%emt 0:00:26]} 26. Qa3 {[%emt 0:00:00]} Qc7 {[%emt 0:03:15]} 27. Rfc1 {[%emt 0:00:00]} Rb6 {[%emt 0:01:30]} 28. Qc5 {[%emt 0:00:00]} Nb7 {[%emt 0:06:00]} 29. Qa3 {[%emt 0:00:00]} Bf5 {[%emt 0:00:41]} 30. Nf4 {[%emt 0:00:00]} Qd7 {[%emt 0:00:45]} 31. Bf1 {[%emt 0:04:30]} Nd8 {[%emt 0:01:08]} 32. Qc5 {[%emt 0:00:00]} Qa7 {[%emt 0:01:28]} 33. Qd6 {[%emt 0:00:00]} Qe7 {[%emt 0:01:19]} 34. Qxe7 {[%emt 0:00:00]} Rxe7 {[%emt 0:00:02]} 35. g4 {[%emt 0:00:00]} Bd7 {[%emt 0:02:55]} 36. Nd3 {[%emt 0:00:00]} Nb7 {[%emt 0:01:44]} 37. b4 {[%emt 0:03:00]} axb4 {[%emt 0:04:23]} 38. Rb3 {[%emt 0:00:00]} Na5 {[%emt 0:00:35]} 39. Rxb4 {[%emt 0:00:00]} Rxb4 {[%emt 0:00:07]} 40. Nxb4 {[%emt 0:00:00]} Be8 {[%emt 0:00:12]} 41. Rc5 {[%emt 0:00:00]} Ra7 {[%emt 0:04:11]} 42. Na6 {[%emt 0:00:00]} Nb7 {[%emt 0:00:31]} 43. Rc3 {[%emt 0:00:00]} Kf8 {[%emt 0:00:54]} 44. e4 {[%emt 0:00:00]} Ke7 {[%emt 0:25:04]} 45. Nc7 {[%emt 0:04:00]} dxe4 {[%emt 0:00:00]} 46. Nxe8 {[%emt 0:00:00]} Kxe8 {[%emt 0:00:00]} 47. Rxc6 {[%emt 0:00:00]} Rxa4 {[%emt 0:00:00]} 1-0

[Event "1000GM Winter IM Norm-2 2024"]
[Site "Sunnyvale/"]
[Date "2024.01.06"]
[Round "7.7"]
[White "Bhatta, Rohit"]
[Black "Calderin Gonzalez, Roberto"]
[Result "0-1"]
[ECO "A41"]
[WhiteElo "1867"]
[BlackElo "2413"]
[Annotator "RC"]
[PlyCount "112"]
[EventDate "2023.12.14"]
[EventType "schev"]
[EventCountry "USA"]
[SourceTitle "playchess.com"]
[Source "ChessBase"]
[SourceQuality "1"]
[TimeControl "5400+30"]

1. d4 {[%emt 0:00:02]} g6 {[%emt 1:31:00]} 2. c4 {[%emt 0:00:05]} Bg7 {[%emt 0:00:06]} 3. Nf3 {[%emt 0:00:18]} d6 {[%emt 0:00:07]} 4. g3 {[%emt 0:00:23]} Bg4 {[%emt 0:00:45]} 5. Bg2 {[%emt 0:00:08]} Nc6 {[%emt 0:00:04]} 6. d5 {[%emt 0:03:29]} Na5 {[%emt 0:05:53]} 7. Qa4+ {[%emt 0:02:25]} c6 {[%emt 0:00:08]} 8. Bd2 {[%emt 0:00:55]} b6 {[%emt 0:03:04]} 9. Bxa5 {[%emt 1:27:15]} bxa5 {[%emt 0:00:02]} 10. Nc3 {[%emt 0:00:00]} Rc8 {[%emt 0:03:46]} 11. dxc6 {[%emt 0:00:00]} Qb6 {[%emt 0:01:25]} 12. O-O {[%emt 0:01:30]} Kf8 {[%emt 0:08:56]} 13. h3 {[%emt 0:00:00]} Bf5 {[%emt 0:23:20]} 14. Nh4 {[%emt 0:00:00]} Qxb2 {[%emt 0:01:33]} 15. Nd5 {[%emt 0:00:00]} e6 {[%emt 0:03:49]} 16. Nxf5 {[%emt 0:00:00]} gxf5 {[%emt 0:00:11]} 17. Rab1 {[%emt 0:00:00]} Qe5 {[%emt 0:00:54]} 18. Nf4 {[%emt 0:00:00]} a6 {[%emt 0:02:01]} 19. Rb6 {[%emt 0:00:00]} Bh6 {[%emt 0:06:32]} 20. e3 {[%emt 0:05:30]} Nf6 {[%emt 0:00:08]} 21. Rxa6 {[%emt 0:00:00]} Ne4 {[%emt 0:00:12]} 22. Rxa5 {[%emt 0:00:00]} Nc5 {[%emt 0:03:15]} 23. Nd3 {[%emt 0:00:00]} Nxa4 {[%emt 0:01:29]} 24. Nxe5 {[%emt 0:00:00]} dxe5 {[%emt 0:00:17]} 25. Rxa4 {[%emt 0:00:00]} e4 {[%emt 0:00:07]} 26. Ra6 {[%emt 0:00:00]} Ke7 {[%emt 0:04:30]} 27. Rd1 {[%emt 0:00:00]} Rc7 {[%emt 0:00:09]} 28. g4 {[%emt 0:04:06]} Rb8 {[%emt 0:00:42]} 29. gxf5 {[%emt 0:00:34]} exf5 {[%emt 0:00:12]} 30. Rd5 {[%emt 0:01:03]} Rb1+ {[%emt 0:01:14]} 31. Kh2 {[%emt 0:00:17]} Ke6 {[%emt 0:00:09]} 32. Rd7 {[%emt 0:01:17]} Bg7 {[%emt 0:00:37]} 33. h4 {[%emt 0:02:13]} Be5+ {[%emt 0:00:28]} 34. Kh3 {[%emt 0:00:03]} Rxd7 {[%emt 0:02:17]} 35. cxd7+ {[%emt 0:00:01]} Kxd7 {[%emt 0:00:01]} 36. Ra5 {[%emt 0:01:22]} Ke6 {[%emt 0:00:26]} 37. Ra6+ {[%emt 0:01:14]} Ke7 {[%emt 0:00:08]} 38. Ra5 {[%emt 0:00:29]} Kf6 {[%emt 0:00:15]} 39. f3 {[%emt 0:00:56]} Re1 {[%emt 0:01:35]} 40. Ra3 {[%emt 0:00:20]} Bd6 {[%emt 0:02:48]} 41. Rb3 {[%emt 0:00:40]} Ke5 {[%emt 0:01:51]} 42. Rb5+ {[%emt 0:00:31]} Ke6 {[%emt 0:00:09]} 43. Rb3 {[%emt 0:00:13]} exf3 {[%emt 0:17:35]} 44. Bxf3 {[%emt 0:00:07]} Bc5 {[%emt 0:00:07]} 45. Bd5+ {[%emt 0:01:10]} Ke5 {[%emt 0:01:33]} 46. Bxf7 {[%emt 0:00:39]} Bxe3 {[%emt 0:00:07]} 47. Kg2 {[%emt 0:00:28]} Kf4 {[%emt 0:01:15]} 48. Bd5 {[%emt 0:00:42]} Rg1+ {[%emt 0:01:49]} 49. Kh2 {[%emt 0:00:07]} Ra1 {[%emt 0:01:33]} 50. Rb2 {[%emt 0:01:58]} Kg4 {[%emt 0:01:27]} 51. Rc2 {[%emt 0:00:38]} Bc5 {[%emt 0:00:18]} 52. Be6 {[%emt 0:00:45]} Re1 {[%emt 0:00:10]} 53. Bd7 {[%emt 0:00:39]} Re5 {[%emt 0:01:51]} 54. a4 {[%emt 0:00:28]} Kxh4 {[%emt 0:00:13]} 55. a5 {[%emt 0:00:25]} f4 {[%emt 0:00:43]} 56. Bc6 {[%emt 0:00:23]} Re3 {[%emt 0:00:23]} 0-1

[Event "1000GM Winter IM Norm-2 2024"]
[Site "Sunnyvale/"]
[Date "2024.01.06"]
[Round "7.8"]
[White "Stevens, Adam B"]
[Black "Zuluaga Mancilla, Cesar"]
[Result "1/2-1/2"]
[ECO "D37"]
[WhiteElo "1878"]
[BlackElo "2251"]
[Annotator "RC"]
[PlyCount "119"]
[EventDate "2023.12.14"]
[EventType "schev"]
[EventCountry "USA"]
[SourceTitle "playchess.com"]
[Source "ChessBase"]
[SourceQuality "1"]
[TimeControl "5400+30"]

1. d4 {[%emt 0:00:01]} d5 {[%emt 0:11:36]} 2. c4 {[%emt 0:00:26]} e6 {[%emt 0:00:27]} 3. Nf3 {[%emt 0:00:10]} a6 {[%emt 0:00:09]} 4. cxd5 {[%emt 0:01:18]} exd5 {[%emt 0:00:08]} 5. Nc3 {[%emt 0:00:14]} Nf6 {[%emt 0:01:16]} 6. Bg5 {[%emt 0:01:37]} c6 {[%emt 0:00:58]} 7. e3 {[%emt 0:02:36]} Be7 {[%emt 1:19:26]} 8. Bd3 {[%emt 0:03:48]} h6 {[%emt 0:00:56]} 9. Bh4 {[%emt 0:01:06]} Be6 {[%emt 0:00:18]} 10. Qe2 {[%emt 0:02:28]} Nbd7 {[%emt 0:00:08]} 11. O-O {[%emt 1:22:16]} O-O {[%emt 0:00:08]} 12. Rfd1 {[%emt 0:02:35]} Re8 {[%emt 1:15:04]} 13. Rac1 {[%emt 0:02:22]} Nh7 {[%emt 0:04:30]} 14. Bg3 {[%emt 0:03:10]} Nhf8 {[%emt 0:01:05]} 15. h3 {[%emt 0:04:51]} f5 {[%emt 1:10:53]} 16. Qc2 {[%emt 0:02:59]} g6 {[%emt 0:00:06]} 17. Nd2 {[%emt 0:03:35]} Bf7 {[%emt 1:07:15]} 18. Nb3 {[%emt 1:03:11]} a5 {[%emt 0:01:20]} 19. a4 {[%emt 0:00:52]} Ne6 {[%emt 0:01:30]} 20. f3 {[%emt 0:02:05]} Bg5 {[%emt 1:03:38]} 21. Bf2 {[%emt 0:01:34]} Nef8 {[%emt 0:01:56]} 22. Re1 {[%emt 0:01:15]} h5 {[%emt 1:01:33]} 23. Rcd1 {[%emt 0:00:48]} Qb6 {[%emt 0:00:20]} 24. Nc5 {[%emt 0:03:54]} Nxc5 {[%emt 0:04:42]} 25. dxc5 {[%emt 0:00:13]} Qc7 {[%emt 0:02:54]} 26. e4 {[%emt 0:02:43]} dxe4 {[%emt 0:00:27]} 27. fxe4 {[%emt 0:00:09]} f4 {[%emt 0:54:47]} 28. Ne2 {[%emt 0:07:29]} Rad8 {[%emt 0:00:00]} 29. Bc4 {[%emt 0:00:58]} Rxd1 {[%emt 0:00:00]} 30. Rxd1 {[%emt 0:43:21]} Bxc4 {[%emt 0:00:00]} 31. Qxc4+ {[%emt 0:00:16]} Qf7 {[%emt 0:00:00]} 32. Qxf7+ {[%emt 0:13:12]} Kxf7 {[%emt 0:00:00]} 33. Nc3 {[%emt 0:00:03]} Bf6 {[%emt 0:03:00]} 34. Bd4 {[%emt 0:00:19]} Bxd4+ {[%emt 0:03:30]} 35. Rxd4 {[%emt 0:00:05]} Re5 {[%emt 0:00:00]} 36. b4 {[%emt 0:01:09]} Ke8 {[%emt 0:00:00]} 37. bxa5 {[%emt 0:03:52]} Ne6 {[%emt 0:00:00]} 38. a6 {[%emt 0:06:06]} bxa6 {[%emt 0:00:00]} 39. Rd6 {[%emt 0:02:32]} Rxc5 {[%emt 0:00:00]} 40. Rxe6+ {[%emt 0:00:26]} Kf7 {[%emt 0:00:00]} 41. Rd6 {[%emt 0:00:27]} Rxc3 {[%emt 0:00:00]} 42. Rd7+ {[%emt 0:00:05]} Ke6 {[%emt 0:00:00]} 43. Ra7 {[%emt 0:00:07]} Ke5 {[%emt 0:00:00]} 44. Rxa6 {[%emt 0:02:11]} g5 {[%emt 0:00:00]} 45. Ra5+ {[%emt 0:00:55]} c5 {[%emt 0:00:00]} 46. Ra8 {[%emt 0:01:57]} Kxe4 {[%emt 0:00:00]} 47. a5 {[%emt 0:00:30]} Ra3 {[%emt 0:00:00]} 48. a6 {[%emt 0:00:36]} Kd4 {[%emt 0:00:00]} 49. a7 {[%emt 0:01:20]} Kc4 {[%emt 0:00:00]} 50. Kf2 {[%emt 0:14:26]} g4 {[%emt 0:00:00]} 51. hxg4 {[%emt 0:01:42]} hxg4 {[%emt 0:00:00]} 52. Kf1 {[%emt 0:03:18]} Ra1+ {[%emt 0:00:00]} 53. Kf2 {[%emt 0:00:26]} Kc3 {[%emt 0:00:00]} 54. Rc8 {[%emt 0:00:40]} Ra2+ {[%emt 0:00:00]} 55. Kf1 {[%emt 0:01:21]} Rxa7 {[%emt 0:00:00]} 56. Rxc5+ {[%emt 0:00:06]} Kd4 {[%emt 0:00:00]} 57. Rc1 {[%emt 0:03:28]} Ke4 {[%emt 0:00:00]} 58. Rc4+ {[%emt 0:00:51]} Ke3 {[%emt 0:00:00]} 59. Rc1 {[%emt 0:01:16]} Kd2 {[%emt 0:00:00]} 60. Re1 {[%emt 0:00:35]} 1/2-1/2

[Event "1000GM Winter IM Norm-2 2024"]
[Site "Sunnyvale/"]
[Date "2024.01.06"]
[Round "7.9"]
[White "Sivakumar, Shaashwath"]
[Black "Hajnal, Zoltan"]
[Result "1/2-1/2"]
[ECO "D11"]
[WhiteElo "2205"]
[BlackElo "2383"]
[Annotator "RC"]
[PlyCount "65"]
[EventDate "2023.12.14"]
[EventType "schev"]
[EventCountry "USA"]
[SourceTitle "playchess.com"]
[Source "ChessBase"]
[SourceQuality "1"]
[TimeControl "5400+30"]

1. d4 {[%emt 0:00:02]} d5 {[%emt 0:00:05]} 2. c4 {[%emt 0:00:08]} c6 {[%emt 0:00:04]} 3. Nf3 {[%emt 0:00:03]} Nf6 {[%emt 0:00:06]} 4. e3 {[%emt 0:00:04]} Bg4 {[%emt 0:00:12]} 5. Nc3 {[%emt 0:00:10]} e6 {[%emt 0:00:06]} 6. h3 {[%emt 0:00:15]} Bxf3 {[%emt 0:00:07]} 7. Qxf3 {[%emt 0:00:12]} Nbd7 {[%emt 0:00:09]} 8. Bd2 {[%emt 0:00:28]} Bd6 {[%emt 0:03:41]} 9. g3 {[%emt 0:00:41]} O-O {[%emt 0:00:24]} 10. b3 {[%emt 0:00:07]} Re8 {[%emt 0:01:12]} 11. Bg2 {[%emt 0:00:14]} e5 {[%emt 0:04:49]} 12. O-O {[%emt 0:01:01]} exd4 {[%emt 0:00:10]} 13. exd4 {[%emt 0:00:05]} Bb4 {[%emt 0:00:04]} 14. Bf4 {[%emt 0:07:29]} Qa5 {[%emt 0:04:02]} 15. Rfc1 {[%emt 0:07:17]} Qa3 {[%emt 0:06:59]} 16. cxd5 {[%emt 0:12:52]} Bxc3 {[%emt 0:04:04]} 17. Qxc3 {[%emt 0:00:14]} Nxd5 {[%emt 0:00:43]} 18. Bxd5 {[%emt 0:00:13]} cxd5 {[%emt 0:00:05]} 19. Qc7 {[%emt 0:02:11]} Nb6 {[%emt 0:00:45]} 20. Qxb7 {[%emt 0:02:28]} Qb2 {[%emt 0:00:41]} 21. Be3 {[%emt 0:05:59]} h6 {[%emt 0:00:48]} 22. Qa6 {[%emt 0:03:15]} Rac8 {[%emt 0:01:00]} 23. Qf1 {[%emt 0:05:48]} Nd7 {[%emt 0:02:01]} 24. Rcb1 {[%emt 0:13:00]} Qa3 {[%emt 0:05:11]} 25. Rc1 {[%emt 0:03:51]} Qb2 {[%emt 0:01:42]} 26. Rxc8 {[%emt 0:11:28]} Rxc8 {[%emt 0:00:26]} 27. Rc1 {[%emt 0:00:33]} Rxc1 {[%emt 0:02:15]} 28. Qxc1 {[%emt 0:00:04]} Qxa2 {[%emt 0:00:05]} 29. Qc8+ {[%emt 0:00:13]} Nf8 {[%emt 0:00:04]} 30. Qb7 {[%emt 0:04:20]} Qa5 {[%emt 0:02:55]} 31. Qb8 {[%emt 0:00:44]} Qb6 {[%emt 0:05:14]} 32. Qxb6 {[%emt 0:00:25]} axb6 {[%emt 0:00:05]} 33. Kf1 {[%emt 0:00:14]} 1/2-1/2

[Event "1000GM Winter IM Norm-2 2024"]
[Site "Sunnyvale/"]
[Date "2024.01.06"]
[Round "8.1"]
[White "Dominguez Aguilar, Guillermo"]
[Black "Zhou, Ruoyu"]
[Result "1/2-1/2"]
[ECO "C47"]
[WhiteElo "2319"]
[BlackElo "2112"]
[Annotator "RC"]
[PlyCount "64"]
[EventDate "2023.12.14"]
[EventType "schev"]
[EventCountry "USA"]
[SourceTitle "playchess.com"]
[Source "ChessBase"]
[SourceQuality "1"]
[TimeControl "5400+30"]

1. e4 {[%emt 0:04:10]} e5 {[%emt 0:00:13]} 2. Nf3 {[%emt 0:00:27]} Nc6 {[%emt 0:00:14]} 3. d4 {[%emt 0:00:14]} exd4 {[%emt 0:00:20]} 4. Nxd4 {[%emt 0:00:05]} Nf6 {[%emt 0:00:22]} 5. Nc3 {[%emt 0:00:11]} Bb4 {[%emt 0:00:19]} 6. Nxc6 {[%emt 0:00:08]} bxc6 {[%emt 0:00:13]} 7. Bd3 {[%emt 0:00:02]} d5 {[%emt 0:00:38]} 8. exd5 {[%emt 0:00:07]} cxd5 {[%emt 0:00:16]} 9. O-O {[%emt 0:00:08]} O-O {[%emt 0:00:28]} 10. h3 {[%emt 0:00:05]} h6 {[%emt 0:03:05]} 11. Qf3 {[%emt 0:00:45]} c6 {[%emt 0:08:27]} 12. Bf4 {[%emt 0:07:17]} Bd6 {[%emt 0:01:32]} 13. Rfe1 {[%emt 0:09:37]} Be6 {[%emt 0:04:50]} 14. Ne2 {[%emt 0:01:56]} c5 {[%emt 0:07:27]} 15. c3 {[%emt 0:00:18]} Rb8 {[%emt 0:05:53]} 16. b3 {[%emt 0:01:02]} Re8 {[%emt 0:05:48]} 17. Rad1 {[%emt 0:00:45]} Bxf4 {[%emt 0:02:58]} 18. Nxf4 {[%emt 0:00:52]} Qb6 {[%emt 0:01:44]} 19. Bc2 {[%emt 0:05:35]} Rbd8 {[%emt 0:12:09]} 20. Re2 {[%emt 0:05:18]} Qc7 {[%emt 0:16:15]} 21. Rde1 {[%emt 0:08:30]} Qd6 {[%emt 0:08:49]} 22. Qg3 {[%emt 0:19:29]} a5 {[%emt 0:10:33]} 23. Re5 {[%emt 0:07:16]} Re7 {[%emt 0:05:50]} 24. R1e2 {[%emt 0:12:13]} Rde8 {[%emt 0:00:56]} 25. Bd3 {[%emt 0:00:44]} c4 {[%emt 0:01:01]} 26. bxc4 {[%emt 0:05:20]} dxc4 {[%emt 0:00:16]} 27. Nxe6 {[%emt 0:01:52]} Rxe6 {[%emt 0:00:27]} 28. Rxe6 {[%emt 0:00:10]} Rxe6 {[%emt 0:00:09]} 29. Rxe6 {[%emt 0:00:33]} Qxe6 {[%emt 0:01:49]} 30. Qb8+ {[%emt 0:00:11]} Ne8 {[%emt 0:00:09]} 31. Bxc4 {[%emt 0:00:20]} Qxc4 {[%emt 0:00:11]} 32. Qxe8+ {[%emt 0:00:01]} Kh7 {[%emt 0:00:08]} 1/2-1/2

[Event "1000GM Winter IM Norm-2 2024"]
[Site "Sunnyvale/"]
[Date "2024.01.06"]
[Round "8.2"]
[White "Karthi, Jashith"]
[Black "Ramirez, Carlos"]
[Result "1/2-1/2"]
[ECO "E63"]
[WhiteElo "2032"]
[BlackElo "2190"]
[Annotator "RC"]
[PlyCount "99"]
[EventDate "2023.12.14"]
[EventType "schev"]
[EventCountry "USA"]
[SourceTitle "playchess.com"]
[Source "ChessBase"]
[SourceQuality "1"]
[TimeControl "5400+30"]

1. d4 {[%emt 0:09:02]} Nf6 {[%emt 0:00:11]} 2. c4 {[%emt 0:00:07]} g6 {[%emt 0:00:07]} 3. Nf3 {[%emt 0:00:09]} Bg7 {[%emt 0:00:11]} 4. g3 {[%emt 0:00:04]} O-O {[%emt 0:00:09]} 5. Bg2 {[%emt 0:00:04]} d6 {[%emt 0:01:52]} 6. O-O {[%emt 0:00:07]} Nc6 {[%emt 0:00:12]} 7. Nc3 {[%emt 0:00:05]} a6 {[%emt 0:03:52]} 8. Bf4 {[%emt 0:00:06]} Rb8 {[%emt 0:01:12]} 9. Rc1 {[%emt 0:00:07]} Nd7 {[%emt 0:09:22]} 10. d5 {[%emt 0:03:18]} Na5 {[%emt 0:02:01]} 11. Nd2 {[%emt 0:00:22]} c5 {[%emt 0:00:22]} 12. a3 {[%emt 0:03:21]} b5 {[%emt 0:01:27]} 13. cxb5 {[%emt 0:00:26]} axb5 {[%emt 0:00:16]} 14. b4 {[%emt 0:01:37]} Nc4 {[%emt 0:05:02]} 15. Nxc4 {[%emt 0:01:51]} bxc4 {[%emt 0:00:03]} 16. Na2 {[%emt 0:06:22]} Bb2 {[%emt 0:26:49]} 17. Rxc4 {[%emt 0:00:52]} Bxa3 {[%emt 0:01:01]} 18. Bh6 {[%emt 0:05:40]} Re8 {[%emt 0:00:27]} 19. bxc5 {[%emt 0:00:24]} Nxc5 {[%emt 0:00:47]} 20. Rh4 {[%emt 0:02:50]} Bb2 {[%emt 0:02:43]} 21. Rb4 {[%emt 0:01:17]} Rxb4 {[%emt 0:04:38]} 22. Nxb4 {[%emt 0:00:09]} Bf6 {[%emt 0:00:57]} 23. Nc6 {[%emt 0:00:22]} Qc7 {[%emt 0:02:00]} 24. Bf4 {[%emt 0:02:52]} Bb7 {[%emt 0:01:22]} 25. Qc2 {[%emt 0:01:21]} Qc8 {[%emt 0:09:12]} 26. Rb1 {[%emt 0:02:20]} Qa8 {[%emt 0:00:04]} 27. Be3 {[%emt 0:01:07]} Nd7 {[%emt 0:00:31]} 28. Qb3 {[%emt 0:06:27]} Ba6 {[%emt 0:00:01]} 29. Qa2 {[%emt 0:00:19]} Ne5 {[%emt 0:02:37]} 30. f4 {[%emt 0:03:57]} Ng4 {[%emt 0:01:17]} 31. Bb6 {[%emt 0:02:25]} h5 {[%emt 0:01:26]} 32. h3 {[%emt 0:01:12]} Nh6 {[%emt 0:00:01]} 33. e4 {[%emt 0:00:32]} Kf8 {[%emt 0:00:26]} 34. e5 {[%emt 0:00:40]} Bg7 {[%emt 0:00:01]} 35. Ra1 {[%emt 0:01:26]} Bb7 {[%emt 0:00:24]} 36. Qb2 {[%emt 0:05:48]} Qc8 {[%emt 0:00:19]} 37. Ra3 {[%emt 0:12:02]} Nf5 {[%emt 0:00:30]} 38. Bf2 {[%emt 0:03:41]} Bxc6 {[%emt 0:02:53]} 39. dxc6 {[%emt 0:00:07]} dxe5 {[%emt 0:00:06]} 40. fxe5 {[%emt 0:00:39]} Qc7 {[%emt 0:02:01]} 41. Ra7 {[%emt 0:02:24]} Bxe5 {[%emt 0:00:26]} 42. Rxc7 {[%emt 0:00:11]} Bxb2 {[%emt 0:00:02]} 43. Rb7 {[%emt 0:04:22]} Be5 {[%emt 0:00:12]} 44. c7 {[%emt 0:01:36]} Nxg3 {[%emt 0:00:20]} 45. Bc6 {[%emt 0:01:53]} Rc8 {[%emt 0:02:45]} 46. Bb6 {[%emt 0:00:47]} Ne2+ {[%emt 0:02:10]} 47. Kf2 {[%emt 0:01:31]} Bxc7 {[%emt 0:00:07]} 48. Rxc7 {[%emt 0:00:33]} Rxc7 {[%emt 0:00:01]} 49. Bxc7 {[%emt 0:00:08]} Nd4 {[%emt 0:00:12]} 50. Bd5 {[%emt 0:00:10]} 1/2-1/2